bitfinex-derivatives/quotes_SOLF0:USTF0_20250424
["timestamp","ask_amount","ask_price","bid_price","bid_amount"]
[1745454113992,6.618,151.04,151.01,6.6192]
[1745454114392,6.6184,151.03,150.98,23.92]
[1745454114593,23.92,151.05,150.98,23.92]
[1745454114990,6.6193,151.01,150.98,23.92]
[1745454116293,6.6193,151.01,150.98,30.5405]
[1745454116789,6.6197,151.0,150.98,23.92]
[1745454116994,11.38797443,151.04,150.96,1.8998]
[1745454117292,25.7784,151.05,150.96,1.8998]
[1745454117494,6.6195,151.01,150.98,6.6204]
[1745454117695,6.6195,151.01,150.96,1.8998]
[1745454118094,6.6195,151.01,150.97,6.6206]
[1745454118294,6.6195,151.01,150.96,1.8998]
[1745454119293,6.6195,151.01,150.98,6.6203]
[1745454119994,6.6199,151.0,150.97,6.6209]
[1745454120393,11.38797443,151.04,150.97,6.6209]
[1745454120593,6.62,151.0,150.97,6.6209]
[1745454121595,6.6194,151.01,150.98,6.6205]
[1745454122290,6.6188,151.03,150.99,6.62]
[1745454122592,25.7784,151.05,150.96,1.8998]
[1745454123194,25.7784,151.05,150.98,6.6203]
[1745454123391,25.7784,151.05,150.97,11.38797443]
[1745454123597,26.0143,151.08,151.01,11.38797443]
[1745454123895,24.0,151.08,151.01,11.38797443]
[1745454124496,6.6173,151.06,151.03,6.6183]
[1745454126697,6.6175,151.05,151.03,6.6183]
[1745454127000,6.6175,151.05,151.02,6.6186]
[1745454127298,6.618,151.04,151.0,24.0]
[1745454127600,6.618,151.04,151.01,6.619]
[1745454127988,6.6184,151.03,151.0,24.0]
[1745454129298,6.6184,151.03,151.01,6.6189]
[1745454129599,6.6184,151.03,151.0,24.0]
[1745454129792,37.28597443,151.08,151.0,24.0]
[1745454129994,11.38797443,151.06,151.0,24.0]
[1745454130394,11.38797443,151.06,150.99,6.6198]
[1745454130696,11.38797443,151.06,150.98,11.38797443]
[1745454131098,6.6186,151.03,151.0,6.6194]
[1745454131601,6.6189,151.02,151.0,6.6194]
[1745454131898,6.6189,151.02,150.99,6.6199]
[1745454132198,11.38797443,151.06,150.97,24.0]
[1745454132394,11.38797443,151.04,150.97,24.0]
[1745454132697,35.38797443,151.04,150.97,24.0]
[1745454132889,1.9838,151.03,150.97,24.0]
[1745454133095,1.9838,151.03,150.94,35.38797443]
[1745454133291,6.6213,150.97,150.94,30.6221]
[1745454133490,11.38797443,151.02,150.94,24.0]
[1745454133901,6.6204,150.99,150.96,6.6214]
[1745454134099,11.38797443,151.02,150.96,6.6214]
[1745454134300,11.38797443,151.02,150.94,24.0]
[1745454134500,6.6207,150.98,150.95,6.6216]
[1745454135498,6.6202,150.99,150.96,6.6213]
[1745454135896,6.6202,150.99,150.94,35.38797443]
[1745454136096,6.6198,151.0,150.97,6.6207]
[1745454136296,1.9838,151.03,150.94,35.38797443]
[1745454136699,1.9838,151.03,150.97,6.6208]
[1745454137496,1.9838,151.03,150.96,11.38797443]
[1745454137697,24.0,151.04,150.98,11.38797443]
[1745454138000,6.6187,151.03,151.0,6.6195]
[1745454142200,6.6188,151.02,151.0,6.6195]
[1745454143201,6.6193,151.01,150.99,6.6199]
[1745454143396,6.6193,151.01,150.98,24.0]
[1745454143397,11.38797443,151.06,150.98,24.0]
[1745454143603,11.38797443,151.04,150.95,24.0]
[1745454143801,6.6203,150.99,150.96,6.6212]
[1745454144499,6.6207,150.98,150.96,6.6212]
[1745454146102,6.6207,150.98,150.95,30.6217]
[1745454147303,6.6207,150.98,150.96,6.6214]
[1745454148203,6.6214,150.96,150.95,24.0]
[1745454148404,23.86,150.99,150.92,23.86]
[1745454148902,11.38797443,150.98,150.92,23.86]
[1745454149297,7.30232202,150.95,150.9,7.30232202]
[1745454149497,6.6226,150.94,150.91,6.6236]
[1745454150304,6.623,150.93,150.9,13.92622202]
[1745454151208,6.6233,150.92,150.9,13.92622202]
[1745454151397,6.6233,150.92,150.89,30.4843]
[1745454151802,6.6237,150.91,150.89,30.4843]
[1745454152908,6.6233,150.92,150.89,30.4843]
[1745454153104,27.8583,150.95,150.89,23.86]
[1745454153301,1.9696,150.95,150.89,35.27220739]
[1745454153599,8.5916,150.95,150.91,6.6232]
[1745454153806,8.5916,150.95,150.89,35.27220739]
[1745454154001,1.9696,150.95,150.89,35.27220739]
[1745454154309,1.9696,150.95,150.92,6.6229]
[1745454154508,1.9696,150.95,150.89,35.27220739]
[1745454155006,1.9696,150.95,150.93,6.6225]
[1745454155316,8.5915,150.95,150.89,35.27220739]
[1745454155609,1.9696,150.95,150.89,23.86]
[1745454156310,6.6228,150.93,150.91,6.6235]
[1745454157009,1.9696,150.95,150.9,6.624]
[1745454157209,1.9696,150.95,150.82,531.93487254]
[1745454157210,11.41220739,150.91,150.82,531.93487254]
[1745454157704,27.8551,150.94,150.83,11.41220739]
[1745454157911,27.8551,150.94,150.85,11.41220739]
[1745454158099,6.6233,150.92,150.88,6.6246]
[1745454159007,6.6233,150.92,150.89,6.6244]
[1745454159806,6.6229,150.93,150.89,6.6244]
[1745454160008,6.6229,150.93,150.9,6.624]
[1745454160311,6.6229,150.93,150.86,23.86]
[1745454160510,34.4776,150.94,150.91,6.6236]
[1745454161212,27.8551,150.94,150.87,11.41220739]
[1745454162112,6.6228,150.93,150.9,6.6238]
[1745454162312,27.8551,150.94,150.87,11.41220739]
[1745454163012,34.4778,150.94,150.91,6.6235]
[1745454163512,27.8551,150.94,150.89,6.6241]
[1745454163714,27.8551,150.94,150.86,23.86]
[1745454164213,6.6235,150.92,150.89,6.6243]
[1745454165014,6.6239,150.91,150.88,6.6248]
[1745454165215,11.41220739,150.93,150.86,23.86]
[1745454165817,11.41220739,150.93,150.87,6.6252]
[1745454166008,11.41220739,150.91,150.86,23.86]
[1745454166211,11.41220739,150.91,150.83,23.86]
[1745454166411,6.6251,150.88,150.85,6.6261]
[1745454166611,11.41220739,150.91,150.83,23.86]
[1745454167307,6.6247,150.89,150.85,6.6261]
[1745454167619,11.41220739,150.91,150.83,23.86]
[1745454167918,11.41220739,150.89,150.83,23.86]
[1745454168216,1.91,150.88,150.83,23.86]
[1745454168812,3.7881,150.88,150.8,25.8113]
[1745454169018,3.7881,150.88,150.8,23.86]
[1745454169220,11.41220739,150.87,150.8,23.86]
[1745454169723,6.6265,150.85,150.82,6.6275]
[1745454170019,11.41220739,150.87,150.8,23.86]
[1745454170215,5.7033,150.88,150.77,11.41220739]
[1745454170216,11.41220739,150.85,150.79,6.6287]
[1745454170416,35.27220739,150.85,150.79,6.6287]
[1745454170612,35.27220739,150.85,150.77,23.86]
[1745454170818,6.6279,150.82,150.77,23.86]
[1745454171412,6.6279,150.82,150.79,6.6289]
[1745454171617,6.6272,150.83,150.77,23.86]
[1745454171921,35.27220739,150.85,150.77,23.86]
[1745454172119,6.6283,150.81,150.77,23.86]
[1745454172620,6.6283,150.81,150.78,6.6293]
[1745454173119,35.27220739,150.85,150.77,23.86]
[1745454174223,35.27220739,150.85,150.79,6.6287]
[1745454174722,35.27220739,150.85,150.8,6.6284]
[1745454174922,23.86,150.85,150.8,6.6284]
[1745454175323,6.6269,150.84,150.81,6.628]
[1745454175525,23.86,150.85,150.77,35.27220739]
[1745454176121,23.86,150.85,150.8,6.6282]
[1745454176625,35.27220739,150.85,150.77,23.86]
[1745454176927,11.41220739,150.83,150.77,23.86]
[1745454177123,6.6284,150.81,150.78,6.6293]
[1745454177427,2.0123,150.82,150.78,6.6293]
[1745454177630,6.6285,150.8,150.77,30.4895]
[1745454178328,6.6289,150.79,150.76,6.6301]
[1745454178627,23.74,150.81,150.74,23.74]
[1745454179326,35.15220739,150.81,150.74,23.74]
[1745454180327,6.6298,150.78,150.74,30.3708]
[1745454180625,35.15220739,150.81,150.74,23.74]
[1745454181427,6.6293,150.79,150.76,6.6301]
[1745454182824,6.6294,150.78,150.75,6.6305]
[1745454183027,35.15220739,150.81,150.74,23.74]
[1745454183519,6.6301,150.77,150.74,6.6309]
[1745454184632,6.6305,150.76,150.71,23.76]
[1745454185141,6.6305,150.76,150.73,6.6315]
[1745454185940,6.6299,150.77,150.74,6.6309]
[1745454186137,23.74,150.81,150.73,11.41220739]
[1745454186635,35.15220739,150.81,150.71,35.17220739]
[1745454187040,6.6292,150.79,150.76,6.63]
[1745454188444,6.6294,150.78,150.75,6.6305]
[1745454189043,6.6294,150.78,150.76,6.6302]
[1745454189842,35.15220739,150.81,150.71,35.17220739]
[1745454190240,6.6296,150.78,150.75,6.6304]
[1745454192142,6.6299,150.77,150.74,6.6309]
[1745454192440,6.6299,150.77,150.71,35.17220739]
[1745454192742,6.6295,150.78,150.75,6.6304]
[1745454193244,35.15220739,150.81,150.74,6.6309]
[1745454193742,6.6299,150.77,150.74,6.6309]
[1745454194245,35.15220739,150.81,150.75,6.6305]
[1745454194440,6.6296,150.78,150.75,6.6305]
[1745454195145,6.629,150.79,150.76,6.6299]
[1745454195341,23.74,150.81,150.73,11.41220739]
[1745454195546,23.74,150.81,150.75,11.41220739]
[1745454195841,23.74,150.81,150.75,23.76]
[1745454196742,6.6291,150.79,150.76,6.63]
[1745454197643,35.15220739,150.81,150.74,6.631]
[1745454198447,6.6301,150.77,150.74,6.631]
[1745454198644,11.41220739,150.79,150.73,6.6313]
[1745454199045,11.41220739,150.79,150.75,6.6305]
[1745454199243,35.15220739,150.81,150.72,23.76]
[1745454199444,6.6293,150.79,150.72,23.76]
[1745454199643,35.15220739,150.81,150.72,23.76]
[1745454199945,35.15220739,150.81,150.76,6.6302]
[1745454201247,6.6294,150.78,150.76,6.6302]
[1745454201544,6.6294,150.78,150.75,6.6304]
[1745454201741,6.6291,150.79,150.72,23.76]
[1745454201946,6.6291,150.79,150.76,6.6299]
[1745454202549,6.6295,150.78,150.76,6.6299]
[1745454202748,6.6295,150.78,150.75,6.6305]
[1745454203248,6.6295,150.78,150.76,6.6301]
[1745454203943,6.6295,150.78,150.72,23.76]
[1745454204149,6.6295,150.78,150.75,6.6305]
[1745454206149,7.31783983,150.8,150.73,7.31783983]
[1745454206448,7.31783983,150.78,150.73,7.31783983]
[1745454206652,6.6306,150.76,150.73,13.94913983]
[1745454206848,6.6306,150.76,150.73,6.6313]
[1745454207147,7.31783983,150.76,150.72,23.76]
[1745454207346,7.31783983,150.76,150.71,6.6323]
[1745454207547,7.31783983,150.74,150.69,23.8]
[1745454207848,6.6322,150.72,150.69,30.4333]
[1745454208045,7.31783983,150.72,150.66,31.63371813]
[1745454208446,6.6334,150.69,150.66,38.26801813]
[1745454208848,7.31783983,150.72,150.66,23.8]
[1745454209351,35.24744605,150.73,150.66,23.8]
[1745454209549,35.24744605,150.73,150.66,30.4343]
[1745454210152,35.24744605,150.73,150.66,23.8]
[1745454210553,35.24744605,150.73,150.66,6.6343]
[1745454210949,35.24744605,150.73,150.63,45.03826418]
[1745454211254,11.44744605,150.71,150.64,6.6355]
[1745454211550,6.6348,150.66,150.62,6.6362]
[1745454212153,6.6351,150.65,150.62,6.6362]
[1745454212454,6.6351,150.65,150.61,6.6366]
[1745454212654,6.6358,150.64,150.6,23.8]
[1745454212853,6.6358,150.64,150.6,30.437]
[1745454213049,11.44744605,150.67,150.6,30.437]
[1745454213253,6.6364,150.62,150.57,25.7083]
[1745454213553,11.44744605,150.65,150.57,25.7083]
[1745454214054,6.6364,150.62,150.59,6.6374]
[1745454214255,23.8,150.64,150.59,6.6374]
[1745454214561,6.6365,150.62,150.58,6.638]
[1745454215147,23.8,150.64,150.52,7.83371813]
[1745454215346,23.8,150.64,150.54,3.9303]
[1745454215547,23.8,150.64,150.56,11.44744605]
[1745454216049,6.6361,150.63,150.59,6.6374]
[1745454216252,23.8,150.64,150.56,11.44744605]
[1745454216555,23.8,150.64,150.57,23.82]
[1745454216753,6.6367,150.62,150.58,6.6379]
[1745454216949,2.0315,150.66,150.58,11.44744605]
[1745454217154,25.7611,150.67,150.6,11.44744605]
[1745454217351,6.6358,150.64,150.6,18.08454605]
[1745454217953,6.6358,150.64,150.61,6.6367]
[1745454218451,6.6358,150.64,150.6,11.44744605]
[1745454218646,6.6358,150.64,150.6,18.08444605]
[1745454219251,6.636,150.63,150.6,18.08444605]
[1745454219455,6.636,150.63,150.59,6.6376]
[1745454220157,25.7611,150.67,150.58,18.08544605]
[1745454220348,25.7611,150.67,150.58,11.44744605]
[1745454220655,6.6363,150.63,150.59,6.6374]
[1745454221556,6.6365,150.62,150.59,6.6374]
[1745454222057,11.44744605,150.66,150.58,18.08544605]
[1745454222354,11.44744605,150.66,150.57,23.82]
[1745454222757,6.6367,150.62,150.58,6.6381]
[1745454224057,6.6355,150.64,150.6,11.44744605]
[1745454224958,6.6355,150.64,150.61,6.6368]
[1745454225156,6.6361,150.63,150.6,11.44744605]
[1745454225455,6.6361,150.63,150.6,18.08444605]
[1745454225756,6.6361,150.63,150.6,11.44744605]
[1745454225958,6.6361,150.63,150.58,11.44744605]
[1745454226155,6.6361,150.63,150.59,6.6375]
[1745454226960,6.6364,150.62,150.59,6.6375]
[1745454227160,25.7611,150.67,150.6,6.6372]
[1745454227458,6.6361,150.63,150.6,6.6372]
[1745454228262,6.6354,150.65,150.6,11.44744605]
[1745454228758,23.82,150.67,150.6,11.44744605]
[1745454228964,6.6363,150.63,150.6,11.44744605]
[1745454229563,6.6363,150.63,150.6,18.08474605]
[1745454230664,6.6364,150.62,150.59,6.6376]
[1745454230862,25.8399,150.67,150.58,11.44744605]
[1745454231063,11.44744605,150.66,150.57,23.82]
[1745454231464,6.6375,150.6,150.57,30.4585]
[1745454231865,6.6375,150.6,150.57,23.82]
[1745454232166,23.82,150.63,150.57,23.82]
[1745454232459,23.82,150.63,150.55,6.6392]
[1745454232669,1.9205,150.62,150.54,37.30864605]
[1745454233164,6.6374,150.6,150.55,6.6392]
[1745454233368,6.6374,150.6,150.54,37.30864605]
[1745454233767,6.6374,150.6,150.56,6.639]
[1745454236367,6.6374,150.6,150.57,6.6386]
[1745454237063,1.9205,150.62,150.57,6.6386]
[1745454237268,1.9205,150.62,150.56,11.44744605]
[1745454237767,6.6369,150.61,150.58,6.6379]
[1745454238967,6.6369,150.61,150.59,6.6377]
[1745454239173,8.5571,150.62,150.59,6.6377]
[1745454239462,23.82,150.63,150.58,11.44744605]
[1745454239967,30.4561,150.63,150.58,11.44744605]
[1745454240166,6.6361,150.63,150.58,11.44744605]
[1745454240463,6.6361,150.63,150.6,6.6372]
[1745454241069,6.6361,150.63,150.61,6.6368]
[1745454241270,6.6357,150.64,150.61,6.6368]
[1745454243570,6.636,150.63,150.61,6.6368]
[1745454243766,1.9944,150.65,150.6,6.6371]
[1745454243969,1.9944,150.65,150.58,35.50744605]
[1745454244171,1.9944,150.65,150.58,24.06]
[1745454244373,1.9944,150.65,150.56,11.44744605]
[1745454244579,6.6371,150.61,150.56,11.44744605]
[1745454244876,6.6371,150.61,150.58,6.6379]
[1745454245068,1.9944,150.65,150.58,6.6379]
[1745454245266,7.33428195,150.63,150.58,13.97218195]
[1745454245975,6.6371,150.61,150.58,13.97218195]
[1745454247279,6.6371,150.61,150.58,6.6379]
[1745454248075,6.6373,150.6,150.58,6.6379]
[1745454248374,13.45343782,150.65,150.56,11.45903782]
[1745454248566,13.45343782,150.65,150.55,24.06]
[1745454248766,6.638,150.59,150.55,24.06]
[1745454249069,24.06,150.61,150.55,30.6991]
[1745454249268,35.51903782,150.61,150.52,24.06]
[1745454249476,1.9803,150.6,150.53,6.64]
[1745454249879,1.9803,150.6,150.52,24.06]
[1745454249880,1.9803,150.6,150.55,6.6394]
[1745454250078,1.9803,150.6,150.53,11.45903782]
[1745454250280,502.02,150.66,150.57,11.45903782]
[1745454250578,6.6369,150.61,150.58,6.638]
[1745454250777,6.6369,150.61,150.57,11.45903782]
[1745454250977,504.0003,150.66,150.57,11.45903782]
[1745454250978,6.6365,150.62,150.57,11.45903782]
[1745454251181,1.9042,150.65,150.57,11.45903782]
[1745454251474,6.637,150.61,150.56,24.06]
[1745454251679,6.637,150.61,150.57,6.6384]
[1745454252679,13.36323782,150.65,150.57,6.6384]
[1745454252876,13.36323782,150.65,150.56,30.6989]
[1745454253085,13.36323782,150.65,150.5,1.873]
[1745454253086,11.45903782,150.63,150.53,35.51903782]
[1745454253282,24.06,150.62,150.53,35.51903782]
[1745454253478,13.48973782,150.61,150.53,24.06]
[1745454253683,11.45903782,150.59,150.5,24.06]
[1745454253883,24.06,150.58,150.5,24.06]
[1745454254080,6.6395,150.55,150.52,6.6405]
[1745454256183,24.06,150.58,150.5,24.06]
[1745454257182,6.6392,150.56,150.52,6.6408]
[1745454257485,24.06,150.58,150.52,6.6408]
[1745454257674,6.6397,150.55,150.52,6.6408]
[1745454258685,6.6399,150.54,150.51,6.6411]
[1745454259386,6.6399,150.54,150.52,6.6407]
[1745454259685,6.6397,150.55,150.52,6.6407]
[1745454262488,6.6399,150.54,150.52,6.6407]
[1745454262984,6.6399,150.54,150.51,6.6411]
[1745454263382,6.6408,150.52,150.5,24.06]
[1745454263784,6.6408,150.52,150.47,24.08]
[1745454263982,6.6408,150.52,150.48,18.10143782]
[1745454264285,11.45903782,150.53,150.44,35.53903782]
[1745454264485,1.8695,150.51,150.44,35.53903782]
[1745454264786,6.6424,150.49,150.46,6.6431]
[1745454265087,1.8695,150.51,150.46,6.6431]
[1745454265383,6.6419,150.5,150.47,6.643]
[1745454265889,1.8695,150.51,150.44,35.53903782]
[1745454266490,6.6421,150.49,150.46,6.6432]
[1745454267391,6.6418,150.5,150.47,6.6429]
[1745454267987,6.6421,150.49,150.46,6.6432]
[1745454268488,1.8695,150.51,150.46,6.6432]
[1745454268887,24.1,150.5,150.46,6.6432]
[1745454269189,24.1,150.5,150.47,6.643]
[1745454270090,24.1,150.5,150.44,35.53903782]
[1745454270391,6.6424,150.49,150.44,11.45903782]
[1745454270691,24.1,150.5,150.46,11.45903782]
[1745454271093,24.1,150.5,150.47,6.6426]
[1745454271294,30.7419,150.5,150.48,7.34304036]
[1745454271897,30.7419,150.5,150.48,13.98544036]
[1745454272096,24.1,150.5,150.48,13.98544036]
[1745454272398,24.1,150.5,150.48,7.34304036]
[1745454272594,30.7419,150.5,150.48,7.34304036]
[1745454273893,24.1,150.5,150.48,7.34304036]
[1745454274101,1.8695,150.51,150.48,7.34304036]
[1745454274401,1.8695,150.51,150.49,6.6419]
[1745454274702,8.5107,150.51,150.49,6.6419]
[1745454275499,6.6409,150.52,150.5,7.34304036]
[1745454276000,32.7178,150.53,150.5,13.98474036]
[1745454276196,26.0774,150.53,150.5,7.34304036]
[1745454276395,26.0855,150.56,150.52,7.34304036]
[1745454276797,26.0855,150.56,150.54,7.34304036]
[1745454276997,1.9855,150.56,150.54,7.34304036]
[1745454278600,1.9855,150.56,150.54,13.98294036]
[1745454278805,1.9855,150.56,150.53,7.34304036]
[1745454279204,1.9855,150.56,150.52,6.6405]
[1745454279407,8.6249,150.56,150.52,6.6405]
[1745454279905,8.6249,150.56,150.53,6.6403]
[1745454280109,1.9855,150.56,150.53,6.6403]
[1745454280630,1.9855,150.56,150.52,6.6406]
[1745454281011,1.9855,150.56,150.49,35.56633927]
[1745454281731,8.6247,150.56,150.49,35.56633927]
[1745454282412,6.6395,150.55,150.49,35.56633927]
[1745454282612,1.9855,150.56,150.49,35.56633927]
[1745454282908,1.9855,150.56,150.52,6.6404]
[1745454283105,13.45183927,150.56,150.46,28.0294]
[1745454283305,11.46633927,150.54,150.47,6.6428]
[1745454283606,6.6417,150.5,150.43,11.46633927]
[1745454284008,6.6417,150.5,150.46,6.6431]
[1745454284310,6.6421,150.49,150.46,6.6431]
[1745454284811,6.6414,150.51,150.47,6.6429]
[1745454287217,6.6414,150.51,150.48,6.6424]
[1745454287713,6.6414,150.51,150.47,6.6428]
[1745454288013,6.6419,150.5,150.43,11.46633927]
[1745454288207,6.6419,150.5,150.46,6.6432]
[1745454288512,6.6419,150.5,150.43,11.46633927]
[1745454288812,6.6419,150.5,150.46,6.643]
[1745454289016,6.6419,150.5,150.43,11.46633927]
[1745454289316,13.46153927,150.52,150.48,6.6423]
[1745454289714,42.20693927,150.53,150.43,11.46633927]
[1745454289917,42.20693927,150.53,150.49,6.6417]
[1745454290115,35.56633927,150.53,150.49,6.6417]
[1745454290318,6.641,150.52,150.49,6.6417]
[1745454290616,24.1,150.53,150.5,6.6417]
[1745454291309,30.7406,150.53,150.5,6.6417]
[1745454292013,30.7406,150.53,150.49,6.642]
[1745454292913,24.1,150.53,150.47,11.46633927]
[1745454293311,24.1,150.53,150.51,6.641]
[1745454293823,24.1,150.53,150.47,13.33323927]
[1745454294022,24.1,150.53,150.47,1.8669]
[1745454294417,24.1,150.53,150.49,6.6419]
[1745454294821,30.7405,150.53,150.49,6.6419]
[1745454295319,24.1,150.53,150.49,6.6419]
[1745454296423,30.7405,150.53,150.5,6.6416]
[1745454297322,6.6409,150.52,150.5,6.6416]
[1745454297522,6.6409,150.52,150.49,6.6419]
[1745454298629,6.6413,150.51,150.49,6.6419]
[1745454298927,6.6413,150.51,150.48,6.6424]
[1745454299928,6.641,150.52,150.49,6.642]
[1745454300125,6.641,150.52,150.47,11.46633927]
[1745454300427,6.641,150.52,150.49,6.6417]
[1745454301327,6.641,150.52,150.49,13.98326965]
[1745454302123,6.641,150.52,150.5,6.6417]
[1745454302328,30.7405,150.53,150.49,7.34156965]
[1745454303124,30.7405,150.53,150.5,6.6416]
[1745454303335,6.6408,150.52,150.5,6.6416]
[1745454303534,24.1,150.53,150.5,6.6416]
[1745454303725,30.7405,150.53,150.5,6.6416]
[1745454303927,24.1,150.53,150.5,6.6416]
[1745454305231,6.641,150.52,150.5,6.6416]
[1745454306835,30.7405,150.53,150.51,6.6411]
[1745454307228,26.3655,150.56,150.53,6.6401]
[1745454307430,26.3618,150.59,150.53,7.34156965]
[1745454307635,33.70336965,150.59,150.53,7.34156965]
[1745454307824,6.6388,150.57,150.54,6.6398]
[1745454308330,13.98046965,150.57,150.54,6.6398]
[1745454308531,7.34156965,150.57,150.54,6.6398]
[1745454308937,13.98036965,150.57,150.54,6.6398]
[1745454309128,7.34156965,150.57,150.55,6.6393]
[1745454309529,13.98016965,150.57,150.54,6.6398]
[1745454315032,13.98016965,150.57,150.55,6.6395]
[1745454315837,13.98016965,150.57,150.54,6.6398]
[1745454316436,7.34156965,150.57,150.55,6.6394]
[1745454317438,13.97986965,150.58,150.55,6.6394]
[1745454317639,13.97986965,150.58,150.54,6.6397]
[1745454318137,7.34156965,150.55,150.49,6.6419]
[1745454318440,7.34156965,150.52,150.48,24.38]
[1745454318735,7.34156965,150.5,150.48,24.38]
[1745454318940,7.34156965,150.5,150.45,33.65196965]
[1745454319938,7.34156965,150.5,150.48,6.6425]
[1745454320739,7.34156965,150.5,150.49,6.6421]
[1745454321040,9.33576965,150.54,150.49,7.34156965]
[1745454321341,15.97596965,150.54,150.51,6.641]
[1745454321640,9.33576965,150.54,150.49,7.34156965]
[1745454321840,9.33576965,150.54,150.47,7.34156965]
[1745454322040,7.34156965,150.52,150.47,7.34156965]
[1745454322940,6.6416,150.51,150.49,6.6421]
[1745454325742,6.6416,150.51,150.48,6.6424]
[1745454325943,6.6416,150.51,150.47,7.34156965]
[1745454326142,13.98256965,150.52,150.47,7.34156965]
[1745454326643,13.98256965,150.52,150.49,6.642]
[1745454327259,6.6413,150.51,150.49,6.642]
[1745454327548,7.34156965,150.52,150.48,6.6424]
[1745454327744,6.6416,150.51,150.48,6.6424]
[1745454328146,7.34156965,150.52,150.48,6.6424]
[1745454328442,6.6413,150.51,150.48,6.6424]
[1745454329242,7.34156965,150.5,150.45,33.65196965]
[1745454329442,7.34156965,150.5,150.45,24.38]
[1745454329945,6.6423,150.49,150.46,6.6434]
[1745454332053,7.34156965,150.5,150.46,7.34156965]
[1745454332752,7.34156965,150.5,150.48,6.6424]
[1745454334358,13.98336965,150.5,150.48,6.6424]
[1745454334758,7.34156965,150.5,150.48,6.6424]
[1745454336051,13.98326965,150.51,150.46,7.34156965]
[1745454336256,6.6417,150.51,150.46,7.34156965]
[1745454336552,6.6417,150.51,150.48,6.6422]
[1745454336751,6.6417,150.51,150.46,7.34156965]
[1745454337761,6.6417,150.5,150.48,6.6423]
[1745454339860,6.6421,150.49,150.47,6.6428]
[1745454341348,6.6421,150.49,150.46,6.6432]
[1745454341553,6.6429,150.48,150.45,24.38]
[1745454342056,6.6429,150.48,150.44,7.34156965]
[1745454342561,6.6429,150.48,150.45,6.6438]
[1745454342756,6.6429,150.48,150.44,7.34156965]
[1745454343861,6.6429,150.48,150.45,6.6438]
[1745454344361,6.6433,150.47,150.44,13.98576965]
[1745454344861,6.6433,150.47,150.44,7.34156965]
[1745454346361,6.6433,150.47,150.45,6.6439]
[1745454346660,13.98436965,150.48,150.45,6.6439]
[1745454347462,6.6428,150.48,150.46,6.6433]
[1745454347760,7.34156965,150.49,150.44,7.34156965]
[1745454348062,7.34156965,150.51,150.48,6.6425]
[1745454348362,6.6427,150.48,150.45,6.6436]
[1745454348559,7.34156965,150.5,150.43,31.56156965]
[1745454349057,24.38,150.53,150.47,7.34156965]
[1745454349256,31.72156965,150.53,150.47,7.34156965]
[1745454349759,7.34156965,150.51,150.47,7.34156965]
[1745454349961,7.34156965,150.51,150.45,7.34156965]
[1745454350261,31.72156965,150.53,150.47,7.34156965]
[1745454351262,6.6411,150.52,150.49,6.6421]
[1745454352162,6.6411,150.52,150.48,30.8624]
[1745454352961,6.6411,150.52,150.49,6.642]
[1745454353360,6.6413,150.51,150.48,30.8625]
[1745454354464,13.98286965,150.51,150.48,30.8625]
[1745454355159,6.6417,150.5,150.48,24.22]
[1745454356262,6.6421,150.49,150.48,24.22]
[1745454356665,7.34156965,150.51,150.48,24.22]
[1745454356968,6.642,150.5,150.48,24.22]
[1745454360972,13.98296965,150.51,150.48,30.8623]
[1745454361173,13.98296965,150.51,150.48,24.22]
[1745454361473,7.34156965,150.51,150.48,24.22]
[1745454361674,13.98286965,150.51,150.48,30.8622]
[1745454362774,7.34156965,150.53,150.48,24.22]
[1745454362970,1.9942,150.54,150.51,7.34156965]